[Event "Titled Tuesday Blitz June 27 Late 2023"]
[White "Korchmar, Vasiliy"]
[Black "Kevlishvili, Robby"]
[WhiteFideId "24131750"]
[BlackFideId "1040634"]
[WhiteElo "2690"]
[BlackElo "2962"]
[Result "0-1"]
[Round "3"]
[TimeControl "180+2"]
[Date "2023.06.27"]
[WhiteClock "0:00:00"]
[BlackClock "0:00:27"]
[Board "22"]

1. e4 {[%clk 0:03:00]}  c5 {[%clk 0:02:55]} 2. d4 {[%clk 0:03:00]}  cxd4 {[%clk 0:02:55]} 3. Qxd4 {[%clk 0:03:01]}  Nc6 {[%clk 0:02:55]} 4. Qd3 {[%clk 0:03:02]}  g6 {[%clk 0:02:54]} 5. Nc3 {[%clk 0:03:02]}  Bg7 {[%clk 0:02:54]} 6. Nf3 {[%clk 0:03:02]}  d6 {[%clk 0:02:54]} 7. Be2 {[%clk 0:03:03]}  Nf6 {[%clk 0:02:55]} 8. O-O {[%clk 0:03:03]}  O-O {[%clk 0:02:55]} 9. Nd5 {[%clk 0:03:04]}  Bg4 {[%clk 0:02:52]} 10. c3 {[%clk 0:03:04]}  e6 {[%clk 0:02:46]} 11. Nxf6+ {[%clk 0:02:51]}  Bxf6 {[%clk 0:02:47]} 12. Bh6 {[%clk 0:02:51]}  Re8 {[%clk 0:02:45]} 13. Rfd1 {[%clk 0:02:45]}  Bxf3 {[%clk 0:02:41]} 14. Qxf3 {[%clk 0:02:42]}  Be5 {[%clk 0:02:39]} 15. Qg4 {[%clk 0:02:36]}  a5 {[%clk 0:02:36]} 16. a4 {[%clk 0:02:24]}  Qb6 {[%clk 0:02:34]} 17. Rd2 {[%clk 0:02:17]}  Bg7 {[%clk 0:02:25]} 18. Be3 {[%clk 0:02:12]}  Qc7 {[%clk 0:02:22]} 19. Rad1 {[%clk 0:02:05]}  Ne5 {[%clk 0:02:20]} 20. Qg3 {[%clk 0:02:06]}  Nc4 {[%clk 0:02:14]} 21. Bxc4 {[%clk 0:01:36]}  Qxc4 {[%clk 0:02:15]} 22. Rxd6 {[%clk 0:01:28]}  Qxa4 {[%clk 0:02:06]} 23. f3 {[%clk 0:01:18]}  Qb3 {[%clk 0:02:05]} 24. R1d2 {[%clk 0:01:11]}  a4 {[%clk 0:02:02]} 25. Rb6 {[%clk 0:01:07]}  Qa2 {[%clk 0:01:59]} 26. Rxb7 {[%clk 0:01:04]}  a3 {[%clk 0:01:56]} 27. Qc7 {[%clk 0:00:49]}  Rf8 {[%clk 0:01:47]} 28. bxa3 {[%clk 0:00:48]}  Qa1+ {[%clk 0:01:41]} 29. Kf2 {[%clk 0:00:46]}  Bxc3 {[%clk 0:01:37]} 30. Re2 {[%clk 0:00:24]}  Rxa3 {[%clk 0:01:14]} 31. Rb8 {[%clk 0:00:14]}  Ra8 {[%clk 0:00:59]} 32. Rxf8+ {[%clk 0:00:14]}  Rxf8 {[%clk 0:00:59]} 33. Bd2 {[%clk 0:00:04]}  Be5 {[%clk 0:00:52]} 34. Qc4 {[%clk 0:00:03]}  Bxh2 {[%clk 0:00:46]} 35. Re1 {[%clk 0:00:02]}  Qb2 {[%clk 0:00:42]} 36. Re2 {[%clk 0:00:01]}  Qf6 {[%clk 0:00:34]} 37. g3 {[%clk 0:00:01]}  Rd8 {[%clk 0:00:28]} 38. Kg2 {[%clk 0:00:01]}  Bxg3 {[%clk 0:00:27]} 39. Kxg3 {[%clk 0:00:00]}  Rxd2 {[%clk 0:00:27]} 0-1


[Site "https://www.chess.com"]

[Event "Titled Tuesday Blitz June 27 Late 2023"]
[White "Gokerkan, Cem Kaan"]
[Black "Rodrigue-Lemieux, Shawn"]
[WhiteFideId "6336760"]
[BlackFideId "2620049"]
[WhiteElo "2685"]
[BlackElo "2939"]
[Result "0-1"]
[Round "3"]
[TimeControl "180+2"]
[Date "2023.06.27"]
[WhiteClock "0:00:00"]
[BlackClock "0:00:06"]
[Board "25"]

1. e4 {[%clk 0:03:00]}  c6 {[%clk 0:02:59]} 2. d4 {[%clk 0:03:00]}  d5 {[%clk 0:03:00]} 3. e5 {[%clk 0:02:59]}  Bf5 {[%clk 0:03:00]} 4. Nf3 {[%clk 0:02:57]}  e6 {[%clk 0:03:00]} 5. Be2 {[%clk 0:02:58]}  Bb4+ {[%clk 0:03:00]} 6. c3 {[%clk 0:02:57]}  Ba5 {[%clk 0:03:01]} 7. O-O {[%clk 0:02:53]}  Nd7 {[%clk 0:03:01]} 8. Nbd2 {[%clk 0:02:47]}  Bc7 {[%clk 0:03:01]} 9. Ne1 {[%clk 0:02:43]}  f6 {[%clk 0:03:00]} 10. f4 {[%clk 0:02:43]}  Nh6 {[%clk 0:02:56]} 11. Ndf3 {[%clk 0:02:30]}  O-O {[%clk 0:02:54]} 12. h3 {[%clk 0:02:29]}  Be4 {[%clk 0:02:53]} 13. Be3 {[%clk 0:02:20]}  Qe7 {[%clk 0:02:50]} 14. Nd2 {[%clk 0:02:19]}  Bg6 {[%clk 0:02:49]} 15. Bd3 {[%clk 0:02:00]}  Qf7 {[%clk 0:02:43]} 16. Qc2 {[%clk 0:01:50]}  Bxd3 {[%clk 0:02:40]} 17. Nxd3 {[%clk 0:01:50]}  Qg6 {[%clk 0:02:37]} 18. Rae1 {[%clk 0:01:38]}  Rf7 {[%clk 0:02:25]} 19. Nb4 {[%clk 0:01:34]}  Nf5 {[%clk 0:02:20]} 20. Bf2 {[%clk 0:01:33]}  a5 {[%clk 0:02:18]} 21. Nd3 {[%clk 0:01:32]}  Raf8 {[%clk 0:02:18]} 22. Nf3 {[%clk 0:01:26]}  h5 {[%clk 0:02:03]} 23. exf6 {[%clk 0:01:08]}  gxf6 {[%clk 0:01:53]} 24. Rxe6 {[%clk 0:01:06]}  Rg7 {[%clk 0:01:53]} 25. Nfe1 {[%clk 0:00:55]}  h4 {[%clk 0:01:42]} 26. Qd1 {[%clk 0:00:51]}  Nd6 {[%clk 0:01:29]} 27. Bxh4 {[%clk 0:00:44]}  Qf5 {[%clk 0:01:24]} 28. Re3 {[%clk 0:00:36]}  Ne4 {[%clk 0:01:20]} 29. Qe2 {[%clk 0:00:26]}  Kf7 {[%clk 0:01:12]} 30. g4 {[%clk 0:00:26]}  Rfg8 {[%clk 0:01:10]} 31. Ng2 {[%clk 0:00:26]}  Qh7 {[%clk 0:01:09]} 32. Nf2 {[%clk 0:00:20]}  f5 {[%clk 0:01:03]} 33. Nxe4 {[%clk 0:00:17]}  fxe4 {[%clk 0:01:03]} 34. Qf2 {[%clk 0:00:12]}  Bd8 {[%clk 0:01:00]} 35. Bxd8 {[%clk 0:00:11]}  Rxd8 {[%clk 0:01:01]} 36. f5 {[%clk 0:00:12]}  Rh8 {[%clk 0:01:01]} 37. Nf4 {[%clk 0:00:12]}  Rxg4+ {[%clk 0:01:00]} 38. Rg3 {[%clk 0:00:12]}  Nf6 {[%clk 0:00:26]} 39. Rxg4 {[%clk 0:00:10]}  Nxg4 {[%clk 0:00:27]} 40. Qg3 {[%clk 0:00:11]}  Nf6 {[%clk 0:00:18]} 41. Kh2 {[%clk 0:00:11]}  Qh4 {[%clk 0:00:16]} 42. Qxh4 {[%clk 0:00:08]}  Rxh4 {[%clk 0:00:17]} 43. Ng6 {[%clk 0:00:09]}  Rh5 {[%clk 0:00:15]} 44. Kg3 {[%clk 0:00:07]}  Rg5+ {[%clk 0:00:14]} 45. Kh2 {[%clk 0:00:04]}  e3 {[%clk 0:00:14]} 46. Ne5+ {[%clk 0:00:04]}  Ke7 {[%clk 0:00:14]} 47. h4 {[%clk 0:00:02]}  Rh5 {[%clk 0:00:07]} 48. Kh3 {[%clk 0:00:02]}  Ne4 {[%clk 0:00:06]} 49. Re1 {[%clk 0:00:02]}  Rxf5 {[%clk 0:00:05]} 50. Rxe3 {[%clk 0:00:03]}  Rf2 {[%clk 0:00:06]} 51. h5 {[%clk 0:00:03]}  Rxb2 {[%clk 0:00:05]} 52. h6 {[%clk 0:00:03]}  Kf6 {[%clk 0:00:05]} 53. Rf3+ {[%clk 0:00:02]}  Ke6 {[%clk 0:00:04]} 54. h7 {[%clk 0:00:02]}  Ng5+ {[%clk 0:00:04]} 55. Kg4 {[%clk 0:00:02]}  Nxh7 {[%clk 0:00:05]} 56. Rf7 {[%clk 0:00:02]}  Nf6+ {[%clk 0:00:05]} 57. Kg5 {[%clk 0:00:02]}  Ne4+ {[%clk 0:00:05]} 58. Kg4 {[%clk 0:00:00]}  Rg2+ {[%clk 0:00:06]} 0-1


[Site "https://www.chess.com"]

[Event "Titled Tuesday Blitz June 27 Late 2023"]
[White "Alex_Sahakyan2006"]
[Black "Dardha, Daniel"]
[BlackFideId "240990"]
[WhiteElo "2676"]
[BlackElo "2899"]
[Result "0-1"]
[Round "3"]
[TimeControl "180+2"]
[Date "2023.06.27"]
[WhiteClock "0:00:00"]
[BlackClock "0:00:19"]
[Board "26"]

1. e4 {[%clk 0:03:00]}  e6 {[%clk 0:02:56]} 2. d4 {[%clk 0:02:58]}  d5 {[%clk 0:02:56]} 3. Bd3 {[%clk 0:02:58]}  dxe4 {[%clk 0:02:54]} 4. Bxe4 {[%clk 0:02:59]}  Nf6 {[%clk 0:02:54]} 5. Bf3 {[%clk 0:02:59]}  c5 {[%clk 0:02:53]} 6. Ne2 {[%clk 0:02:59]}  Nc6 {[%clk 0:02:49]} 7. Be3 {[%clk 0:02:59]}  Nd5 {[%clk 0:02:48]} 8. Bxd5 {[%clk 0:02:56]}  Qxd5 {[%clk 0:02:43]} 9. Nbc3 {[%clk 0:02:55]}  Qh5 {[%clk 0:02:33]} 10. Nb5 {[%clk 0:02:35]}  cxd4 {[%clk 0:02:27]} 11. Nc7+ {[%clk 0:02:08]}  Ke7 {[%clk 0:02:25]} 12. Nxa8 {[%clk 0:01:53]}  dxe3 {[%clk 0:02:24]} 13. O-O {[%clk 0:01:52]}  Qe5 {[%clk 0:02:13]} 14. Qd3 {[%clk 0:01:45]}  Qb8 {[%clk 0:02:08]} 15. Rad1 {[%clk 0:01:33]}  Qxa8 {[%clk 0:02:01]} 16. Nd4 {[%clk 0:01:22]}  f6 {[%clk 0:01:42]} 17. Nxc6+ {[%clk 0:01:12]}  bxc6 {[%clk 0:01:41]} 18. Qd8+ {[%clk 0:01:13]}  Kf7 {[%clk 0:01:40]} 19. Rd7+ {[%clk 0:01:11]}  Kg6 {[%clk 0:01:21]} 20. Qe8+ {[%clk 0:01:08]}  Kh6 {[%clk 0:01:18]} 21. fxe3 {[%clk 0:00:30]}  a5 {[%clk 0:01:00]} 22. Rf3 {[%clk 0:00:25]}  g6 {[%clk 0:00:48]} 23. Rh3+ {[%clk 0:00:15]}  Kg5 {[%clk 0:00:48]} 24. Rg3+ {[%clk 0:00:15]}  Kf5 {[%clk 0:00:48]} 25. Rf7 {[%clk 0:00:08]}  Bb7 {[%clk 0:00:39]} 26. Rf3+ {[%clk 0:00:06]}  Ke5 {[%clk 0:00:39]} 27. Qd7 {[%clk 0:00:05]}  Bc5 {[%clk 0:00:36]} 28. R7xf6 {[%clk 0:00:05]}  Re8 {[%clk 0:00:21]} 29. Qc7+ {[%clk 0:00:06]}  Bd6 {[%clk 0:00:21]} 30. Qb6 {[%clk 0:00:06]}  c5 {[%clk 0:00:21]} 31. Rf2 {[%clk 0:00:03]}  Qa6 {[%clk 0:00:18]} 32. Qb3 {[%clk 0:00:03]}  c4 {[%clk 0:00:18]} 33. Qc3+ {[%clk 0:00:02]}  Kd5 {[%clk 0:00:19]} 34. Rd2+ {[%clk 0:00:00]}  Kc6 {[%clk 0:00:19]} 0-1


[Site "https://www.chess.com"]

[Event "Titled Tuesday Blitz June 27 Late 2023"]
[White "Chigaev, Maksim"]
[Black "Rosen, Eric"]
[WhiteFideId "4108116"]
[BlackFideId "2032562"]
[WhiteElo "2898"]
[BlackElo "2675"]
[Result "1-0"]
[Round "3"]
[TimeControl "180+2"]
[Date "2023.06.27"]
[WhiteClock "0:00:16"]
[BlackClock "0:00:03"]
[Board "27"]

1. e4 {[%clk 0:03:00]}  c5 {[%clk 0:02:59]} 2. Nf3 {[%clk 0:02:55]}  Nc6 {[%clk 0:02:59]} 3. d4 {[%clk 0:02:56]}  cxd4 {[%clk 0:03:00]} 4. Nxd4 {[%clk 0:02:56]}  g6 {[%clk 0:02:59]} 5. Nc3 {[%clk 0:02:54]}  Bg7 {[%clk 0:02:58]} 6. Be3 {[%clk 0:02:54]}  Nf6 {[%clk 0:02:59]} 7. Bc4 {[%clk 0:02:54]}  O-O {[%clk 0:02:59]} 8. Bb3 {[%clk 0:02:54]}  Re8 {[%clk 0:02:56]} 9. f3 {[%clk 0:02:51]}  e6 {[%clk 0:02:56]} 10. f4 {[%clk 0:02:49]}  Nd5 {[%clk 0:02:56]} 11. Nxc6 {[%clk 0:02:14]}  Nxe3 {[%clk 0:02:35]} 12. Nxd8 {[%clk 0:02:14]}  Nxd1 {[%clk 0:02:35]} 13. Rxd1 {[%clk 0:02:15]}  Rxd8 {[%clk 0:02:34]} 14. e5 {[%clk 0:02:11]}  d5 {[%clk 0:01:35]} 15. Ne2 {[%clk 0:01:48]}  f6 {[%clk 0:01:27]} 16. exf6 {[%clk 0:01:47]}  Bxf6 {[%clk 0:01:28]} 17. c3 {[%clk 0:01:47]}  a5 {[%clk 0:01:19]} 18. Ba4 {[%clk 0:01:17]}  b5 {[%clk 0:00:58]} 19. Bxb5 {[%clk 0:01:17]}  Rb8 {[%clk 0:00:59]} 20. a4 {[%clk 0:01:09]}  Bd7 {[%clk 0:00:59]} 21. c4 {[%clk 0:00:34]}  Bxb2 {[%clk 0:00:56]} 22. Kf2 {[%clk 0:00:34]}  Ba3 {[%clk 0:00:45]} 23. Rd3 {[%clk 0:00:27]}  Bc5+ {[%clk 0:00:45]} 24. Kf3 {[%clk 0:00:28]}  Bc8 {[%clk 0:00:40]} 25. Rhd1 {[%clk 0:00:25]}  Bb7 {[%clk 0:00:39]} 26. Kg3 {[%clk 0:00:25]}  Rf8 {[%clk 0:00:38]} 27. cxd5 {[%clk 0:00:16]}  Bxd5 {[%clk 0:00:35]} 28. Nc3 {[%clk 0:00:16]}  Bd6 {[%clk 0:00:10]} 29. Nxd5 {[%clk 0:00:17]}  exd5 {[%clk 0:00:11]} 30. Rxd5 {[%clk 0:00:17]}  Bxf4+ {[%clk 0:00:11]} 31. Kh3 {[%clk 0:00:18]}  Kg7 {[%clk 0:00:03]} 32. Rd7+ {[%clk 0:00:17]}  Kh6 {[%clk 0:00:03]} 33. Ra7 {[%clk 0:00:08]}  Ra8 {[%clk 0:00:02]} 34. Rb7 {[%clk 0:00:07]}  Be5 {[%clk 0:00:02]} 35. Rdd7 {[%clk 0:00:06]}  Rh8 {[%clk 0:00:02]} 36. g3 {[%clk 0:00:07]}  Bc3 {[%clk 0:00:02]} 37. Re7 {[%clk 0:00:06]}  Rad8 {[%clk 0:00:02]} 38. Re4 {[%clk 0:00:06]}  Kg5 {[%clk 0:00:01]} 39. Rg4+ {[%clk 0:00:06]}  Kf6 {[%clk 0:00:01]} 40. Rf4+ {[%clk 0:00:06]}  Kg5 {[%clk 0:00:01]} 41. Rc7 {[%clk 0:00:06]}  Rd5 {[%clk 0:00:02]} 42. Rxc3 {[%clk 0:00:06]}  Kh6 {[%clk 0:00:02]} 43. Rh4+ {[%clk 0:00:06]}  Kg7 {[%clk 0:00:01]} 44. Rc7+ {[%clk 0:00:06]}  Kf6 {[%clk 0:00:02]} 45. Rhxh7 {[%clk 0:00:06]}  Rxh7+ {[%clk 0:00:03]} 46. Rxh7 {[%clk 0:00:07]}  Kg5 {[%clk 0:00:04]} 47. Kg2 {[%clk 0:00:06]}  Rd2+ {[%clk 0:00:04]} 48. Kf3 {[%clk 0:00:07]}  Ra2 {[%clk 0:00:03]} 49. h4+ {[%clk 0:00:07]}  Kf6 {[%clk 0:00:04]} 50. Ra7 {[%clk 0:00:07]}  Ra3+ {[%clk 0:00:05]} 51. Kg4 {[%clk 0:00:07]}  Ra2 {[%clk 0:00:04]} 52. Ra6+ {[%clk 0:00:08]}  Kg7 {[%clk 0:00:04]} 53. Rxa5 {[%clk 0:00:08]}  Kh6 {[%clk 0:00:05]} 54. Ra6 {[%clk 0:00:08]}  Rb2 {[%clk 0:00:05]} 55. Be8 {[%clk 0:00:08]}  Rb4+ {[%clk 0:00:05]} 56. Kh3 {[%clk 0:00:09]}  Rb1 {[%clk 0:00:05]} 57. Rxg6+ {[%clk 0:00:09]}  Kh7 {[%clk 0:00:05]} 58. Re6 {[%clk 0:00:09]}  Ra1 {[%clk 0:00:04]} 59. Bb5 {[%clk 0:00:10]}  Kg7 {[%clk 0:00:04]} 60. Re4 {[%clk 0:00:10]}  Kf6 {[%clk 0:00:05]} 61. Rf4+ {[%clk 0:00:11]}  Kg6 {[%clk 0:00:05]} 62. Kg4 {[%clk 0:00:11]}  Ra3 {[%clk 0:00:05]} 63. Be8+ {[%clk 0:00:11]}  Kg7 {[%clk 0:00:05]} 64. h5 {[%clk 0:00:12]}  Kh6 {[%clk 0:00:05]} 65. Bb5 {[%clk 0:00:12]}  Kg7 {[%clk 0:00:05]} 66. Kh4 {[%clk 0:00:12]}  Ra1 {[%clk 0:00:05]} 67. g4 {[%clk 0:00:13]}  Kh6 {[%clk 0:00:06]} 68. g5+ {[%clk 0:00:12]}  Kg7 {[%clk 0:00:07]} 69. h6+ {[%clk 0:00:13]}  Kh7 {[%clk 0:00:06]} 70. Bd3+ {[%clk 0:00:13]}  Kg8 {[%clk 0:00:06]} 71. g6 {[%clk 0:00:13]}  Rh1+ {[%clk 0:00:04]} 72. Kg5 {[%clk 0:00:13]}  Rg1+ {[%clk 0:00:04]} 73. Kf6 {[%clk 0:00:14]}  Rg2 {[%clk 0:00:03]} 74. Bc4+ {[%clk 0:00:14]}  Kh8 {[%clk 0:00:02]} 75. g7+ {[%clk 0:00:14]}  Kh7 {[%clk 0:00:03]} 76. Bd3+ {[%clk 0:00:15]}  Kxh6 {[%clk 0:00:03]} 77. Rh4# {[%clk 0:00:16]} 1-0


[Site "https://www.chess.com"]

[Event "Titled Tuesday Blitz June 27 Late 2023"]
[White "Aldokhin, Ivan"]
[Black "Mikaelyan, Arman"]
[WhiteFideId "24115720"]
[BlackFideId "13304852"]
[WhiteElo "2613"]
[BlackElo "2883"]
[Result "0-1"]
[Round "3"]
[TimeControl "180+2"]
[Date "2023.06.27"]
[WhiteClock "0:00:03"]
[BlackClock "0:01:15"]
[Board "30"]

1. e4 {[%clk 0:02:59]}  c5 {[%clk 0:02:59]} 2. Nf3 {[%clk 0:03:00]}  Nc6 {[%clk 0:02:58]} 3. d4 {[%clk 0:03:01]}  cxd4 {[%clk 0:02:59]} 4. Nxd4 {[%clk 0:03:01]}  g6 {[%clk 0:02:59]} 5. Nc3 {[%clk 0:03:02]}  Bg7 {[%clk 0:02:59]} 6. Be3 {[%clk 0:03:02]}  Nf6 {[%clk 0:02:59]} 7. Bc4 {[%clk 0:03:03]}  O-O {[%clk 0:02:57]} 8. Bb3 {[%clk 0:03:03]}  Re8 {[%clk 0:02:57]} 9. O-O {[%clk 0:03:03]}  d6 {[%clk 0:02:56]} 10. h3 {[%clk 0:03:03]}  Na5 {[%clk 0:02:51]} 11. Re1 {[%clk 0:03:02]}  a6 {[%clk 0:02:48]} 12. Bg5 {[%clk 0:03:01]}  b5 {[%clk 0:02:42]} 13. Nd5 {[%clk 0:02:57]}  Bb7 {[%clk 0:02:32]} 14. Bxf6 {[%clk 0:02:34]}  exf6 {[%clk 0:02:33]} 15. c3 {[%clk 0:02:22]}  f5 {[%clk 0:02:24]} 16. f3 {[%clk 0:01:00]}  fxe4 {[%clk 0:02:21]} 17. fxe4 {[%clk 0:01:00]}  Nxb3 {[%clk 0:02:08]} 18. Nxb3 {[%clk 0:00:57]}  f5 {[%clk 0:02:02]} 19. Qd3 {[%clk 0:00:50]}  Qh4 {[%clk 0:01:44]} 20. Nc7 {[%clk 0:00:33]}  Rxe4 {[%clk 0:01:43]} 21. Rxe4 {[%clk 0:00:21]}  Bxe4 {[%clk 0:01:44]} 22. Qxd6 {[%clk 0:00:20]}  Rd8 {[%clk 0:01:39]} 23. Qe6+ {[%clk 0:00:13]}  Kh8 {[%clk 0:01:40]} 24. Nc5 {[%clk 0:00:13]}  Bxg2 {[%clk 0:01:17]} 25. Kxg2 {[%clk 0:00:03]}  Rd2+ {[%clk 0:01:16]} 26. Kf1 {[%clk 0:00:03]}  Qf2# {[%clk 0:01:15]} 0-1


[Site "https://www.chess.com"]

[Event "Titled Tuesday Blitz June 27 Late 2023"]
[White "Atanasov, Anthony"]
[Black "Horvath, Dominik"]
[WhiteFideId "2623897"]
[BlackFideId "1642561"]
[WhiteElo "2613"]
[BlackElo "2873"]
[Result "0-1"]
[Round "3"]
[TimeControl "180+2"]
[Date "2023.06.27"]
[WhiteClock "0:00:00"]
[BlackClock "0:00:42"]
[Board "31"]

1. d4 {[%clk 0:03:00]}  d5 {[%clk 0:02:59]} 2. Bf4 {[%clk 0:03:00]}  Nf6 {[%clk 0:02:59]} 3. e3 {[%clk 0:03:00]}  c5 {[%clk 0:02:59]} 4. Nf3 {[%clk 0:03:01]}  Nc6 {[%clk 0:02:59]} 5. Nbd2 {[%clk 0:03:01]}  Nh5 {[%clk 0:02:59]} 6. Be5 {[%clk 0:02:58]}  e6 {[%clk 0:02:53]} 7. c4 {[%clk 0:02:58]}  cxd4 {[%clk 0:02:50]} 8. Nxd4 {[%clk 0:02:56]}  Nf6 {[%clk 0:02:47]} 9. Nxc6 {[%clk 0:02:48]}  bxc6 {[%clk 0:02:47]} 10. cxd5 {[%clk 0:02:49]}  cxd5 {[%clk 0:02:44]} 11. Bxf6 {[%clk 0:02:45]}  gxf6 {[%clk 0:02:43]} 12. Bb5+ {[%clk 0:02:45]}  Bd7 {[%clk 0:02:42]} 13. Bxd7+ {[%clk 0:02:46]}  Qxd7 {[%clk 0:02:43]} 14. O-O {[%clk 0:02:46]}  Rb8 {[%clk 0:02:43]} 15. Qf3 {[%clk 0:02:40]}  f5 {[%clk 0:02:40]} 16. Nb3 {[%clk 0:02:33]}  Bg7 {[%clk 0:02:36]} 17. Qg3 {[%clk 0:02:27]}  O-O {[%clk 0:02:36]} 18. Rac1 {[%clk 0:02:27]}  Rbc8 {[%clk 0:02:33]} 19. h4 {[%clk 0:02:20]}  Kh8 {[%clk 0:02:33]} 20. Nd4 {[%clk 0:02:17]}  Bf6 {[%clk 0:02:30]} 21. h5 {[%clk 0:02:14]}  Rg8 {[%clk 0:02:29]} 22. Qf3 {[%clk 0:02:13]}  Qa4 {[%clk 0:02:24]} 23. Rxc8 {[%clk 0:02:08]}  Rxc8 {[%clk 0:02:24]} 24. b3 {[%clk 0:02:04]}  Qxa2 {[%clk 0:02:23]} 25. Nxf5 {[%clk 0:02:05]}  exf5 {[%clk 0:02:18]} 26. Qxf5 {[%clk 0:02:06]}  Qa6 {[%clk 0:02:18]} 27. Qxd5 {[%clk 0:02:06]}  Qe6 {[%clk 0:02:17]} 28. Qf3 {[%clk 0:02:01]}  Bb2 {[%clk 0:02:05]} 29. Rb1 {[%clk 0:01:43]}  Qxb3 {[%clk 0:01:50]} 30. Qf5 {[%clk 0:01:33]}  Qc2 {[%clk 0:01:46]} 31. Qxc2 {[%clk 0:01:18]}  Rxc2 {[%clk 0:01:45]} 32. h6 {[%clk 0:01:18]}  Kg8 {[%clk 0:01:44]} 33. Rd1 {[%clk 0:01:18]}  Kf8 {[%clk 0:01:44]} 34. Rd7 {[%clk 0:01:18]}  a5 {[%clk 0:01:42]} 35. Ra7 {[%clk 0:01:18]}  Rc1+ {[%clk 0:01:35]} 36. Kh2 {[%clk 0:01:18]}  Ra1 {[%clk 0:01:36]} 37. Kg3 {[%clk 0:01:17]}  a4 {[%clk 0:01:36]} 38. Kf4 {[%clk 0:01:13]}  a3 {[%clk 0:01:37]} 39. Kf5 {[%clk 0:01:07]}  Rc1 {[%clk 0:01:34]} 40. f4 {[%clk 0:01:07]}  Rc5+ {[%clk 0:01:32]} 41. Kg4 {[%clk 0:01:07]}  Rc6 {[%clk 0:01:31]} 42. Kh5 {[%clk 0:01:05]}  Ke8 {[%clk 0:01:30]} 43. g4 {[%clk 0:01:05]}  Kd8 {[%clk 0:01:30]} 44. g5 {[%clk 0:01:05]}  Kc8 {[%clk 0:01:28]} 45. f5 {[%clk 0:01:04]}  Kd8 {[%clk 0:01:24]} 46. e4 {[%clk 0:01:01]}  Ke8 {[%clk 0:01:18]} 47. e5 {[%clk 0:00:56]}  Rc5 {[%clk 0:01:10]} 48. Ra8+ {[%clk 0:00:45]}  Kd7 {[%clk 0:01:10]} 49. Ra7+ {[%clk 0:00:41]}  Kc6 {[%clk 0:01:10]} 50. e6 {[%clk 0:00:15]}  fxe6 {[%clk 0:01:09]} 51. fxe6 {[%clk 0:00:16]}  Bf6 {[%clk 0:00:46]} 52. Ra6+ {[%clk 0:00:11]}  Kb7 {[%clk 0:00:42]} 53. e7 {[%clk 0:00:03]}  Bxe7 {[%clk 0:00:42]} 54. Re6 {[%clk 0:00:01]}  Rxg5+ {[%clk 0:00:41]} 55. Kh4 {[%clk 0:00:02]}  Re5+ {[%clk 0:00:42]} 56. Rxe7+ {[%clk 0:00:00]}  Rxe7 {[%clk 0:00:42]} 0-1


[Site "https://www.chess.com"]

[Event "Titled Tuesday Blitz June 27 Late 2023"]
[White "Erdogmus, Yagiz Kaan"]
[Black "Isajevsky, Anton"]
[WhiteFideId "44599790"]
[BlackFideId "4142500"]
[WhiteElo "2869"]
[BlackElo "2612"]
[Result "1-0"]
[Round "3"]
[TimeControl "180+2"]
[Date "2023.06.27"]
[WhiteClock "0:00:11"]
[BlackClock "0:00:00"]
[Board "32"]

1. e4 {[%clk 0:03:00]}  c5 {[%clk 0:02:50]} 2. Nf3 {[%clk 0:02:51]}  d6 {[%clk 0:02:50]} 3. d4 {[%clk 0:02:48]}  cxd4 {[%clk 0:02:47]} 4. Nxd4 {[%clk 0:02:48]}  Nf6 {[%clk 0:02:46]} 5. Nc3 {[%clk 0:02:49]}  a6 {[%clk 0:02:46]} 6. h3 {[%clk 0:02:47]}  e5 {[%clk 0:02:43]} 7. Nde2 {[%clk 0:02:45]}  h5 {[%clk 0:02:42]} 8. g3 {[%clk 0:02:41]}  Nbd7 {[%clk 0:02:37]} 9. a4 {[%clk 0:02:27]}  b6 {[%clk 0:02:34]} 10. Bg2 {[%clk 0:02:25]}  Bb7 {[%clk 0:02:31]} 11. O-O {[%clk 0:02:20]}  Be7 {[%clk 0:02:31]} 12. Be3 {[%clk 0:02:18]}  O-O {[%clk 0:02:30]} 13. Nd5 {[%clk 0:02:09]}  Nxd5 {[%clk 0:02:20]} 14. exd5 {[%clk 0:02:10]}  Rc8 {[%clk 0:02:19]} 15. h4 {[%clk 0:02:04]}  Nf6 {[%clk 0:01:51]} 16. b3 {[%clk 0:01:51]}  Ng4 {[%clk 0:01:49]} 17. Bd2 {[%clk 0:01:49]}  b5 {[%clk 0:01:38]} 18. axb5 {[%clk 0:01:49]}  axb5 {[%clk 0:01:39]} 19. Ba5 {[%clk 0:01:13]}  Qd7 {[%clk 0:01:36]} 20. Qd2 {[%clk 0:01:07]}  Bd8 {[%clk 0:01:30]} 21. Bxd8 {[%clk 0:01:02]}  Qxd8 {[%clk 0:01:06]} 22. Nc3 {[%clk 0:00:36]}  Qb6 {[%clk 0:01:04]} 23. Ne4 {[%clk 0:00:37]}  Rfd8 {[%clk 0:00:36]} 24. Rad1 {[%clk 0:00:26]}  b4 {[%clk 0:00:33]} 25. Qg5 {[%clk 0:00:25]}  Rxc2 {[%clk 0:00:22]} 26. Qxh5 {[%clk 0:00:21]}  Nh6 {[%clk 0:00:22]} 27. Nf6+ {[%clk 0:00:19]}  Kf8 {[%clk 0:00:17]} 28. Qg5 {[%clk 0:00:19]}  gxf6 {[%clk 0:00:15]} 29. Qxh6+ {[%clk 0:00:17]}  Ke7 {[%clk 0:00:16]} 30. h5 {[%clk 0:00:16]}  Ba6 {[%clk 0:00:14]} 31. Be4 {[%clk 0:00:14]}  Rb2 {[%clk 0:00:05]} 32. Bd3 {[%clk 0:00:11]}  Bxd3 {[%clk 0:00:05]} 33. Rxd3 {[%clk 0:00:11]}  Rc8 {[%clk 0:00:00]} 34. Rf3 {[%clk 0:00:11]} 1-0


[Site "https://www.chess.com"]

[Event "Titled Tuesday Blitz June 27 Late 2023"]
[White "Holt, Conrad"]
[Black "Grinev, Valeriy"]
[WhiteFideId "2034387"]
[BlackFideId "14117517"]
[WhiteElo "2868"]
[BlackElo "2611"]
[Result "1-0"]
[Round "3"]
[TimeControl "180+2"]
[Date "2023.06.27"]
[WhiteClock "0:00:41"]
[BlackClock "0:00:51"]
[Board "33"]

1. d4 {[%clk 0:03:00]}  Nf6 {[%clk 0:02:56]} 2. c4 {[%clk 0:03:00]}  e6 {[%clk 0:02:52]} 3. Nc3 {[%clk 0:03:00]}  d5 {[%clk 0:02:49]} 4. cxd5 {[%clk 0:03:00]}  exd5 {[%clk 0:02:49]} 5. Bg5 {[%clk 0:03:00]}  c6 {[%clk 0:02:49]} 6. e3 {[%clk 0:03:00]}  Be7 {[%clk 0:02:49]} 7. Bd3 {[%clk 0:02:58]}  h6 {[%clk 0:02:48]} 8. Bh4 {[%clk 0:02:58]}  O-O {[%clk 0:02:48]} 9. Nge2 {[%clk 0:02:57]}  Ne8 {[%clk 0:02:42]} 10. Bxe7 {[%clk 0:02:52]}  Qxe7 {[%clk 0:02:43]} 11. O-O {[%clk 0:02:51]}  Nd6 {[%clk 0:02:43]} 12. Ng3 {[%clk 0:02:50]}  a5 {[%clk 0:02:43]} 13. Re1 {[%clk 0:02:49]}  Na6 {[%clk 0:02:23]} 14. Rc1 {[%clk 0:02:38]}  Nc7 {[%clk 0:02:22]} 15. Na4 {[%clk 0:02:35]}  Ne6 {[%clk 0:02:19]} 16. Nb6 {[%clk 0:02:33]}  Ra7 {[%clk 0:02:10]} 17. Qa4 {[%clk 0:02:31]}  Qd8 {[%clk 0:02:07]} 18. Qb3 {[%clk 0:02:26]}  g6 {[%clk 0:01:46]} 19. Red1 {[%clk 0:02:09]}  Kg7 {[%clk 0:01:47]} 20. Nxc8 {[%clk 0:01:46]}  Qxc8 {[%clk 0:01:39]} 21. e4 {[%clk 0:01:40]}  Nf4 {[%clk 0:01:16]} 22. e5 {[%clk 0:01:16]}  Nxd3 {[%clk 0:01:16]} 23. Rxd3 {[%clk 0:01:05]}  Nc4 {[%clk 0:01:13]} 24. Qc2 {[%clk 0:01:00]}  a4 {[%clk 0:01:13]} 25. b3 {[%clk 0:00:57]}  axb3 {[%clk 0:01:14]} 26. axb3 {[%clk 0:00:58]}  Na3 {[%clk 0:01:14]} 27. Qd2 {[%clk 0:00:55]}  h5 {[%clk 0:01:10]} 28. Nxh5+ {[%clk 0:00:53]}  Kg8 {[%clk 0:00:51]} 29. Qh6 {[%clk 0:00:41]} 1-0


[Site "https://www.chess.com"]